Cogmind - Beta 13 @@@ ROGUE MODE // 2024.03.06 @ 06:34:13 Player: Qwertychrish Result: Destroyed by S-43 Plague with Heavy Machine Gun Performance ------------- Evolutions (8) 4000 Regions Visited (12) 2400 Robots Destroyed (65) 325 Value Destroyed (2160) 2160 Prototype IDs (4) 80 Alien Tech Used (0) 0 Bonus (596) 596 TOTAL SCORE: 9561 Bonus ------- High Alert Combat Kills 96 Entered DSFs 500 Cogmind --------- Core Integrity 0/1450 Matter 300/300 Energy 98/100 System Corruption 5% Temperature Cool (0) Movement Core (50) Location -2/Research Parts ------- > --- POWER (2) -------- (None) > --- PROPULSION (8) --- (None) > --- UTILITY (10) ----- Spectral Analyzer Experimental Signal Interpreter Advanced Terrain Scan Processor Advanced Melee Analysis Suite Core Analyzer > --- WEAPON (3) ------- (None) > --- INVENTORY (5) ---- Light Particle Reactor Improved Terrain Scanner Matter Filter Heavy Gauss Cannon Missile Launcher Peak State ------------ > --- POWER ------------ Neutrino Core Micro Fission Core > --- PROPULSION ------- Nuclear Pulse Array Nuclear Pulse Array Impulse Thruster Impulse Thruster > --- UTILITY ---------- Experimental Signal Interpreter Improved Terrain Scanner Advanced Terrain Scan Processor Core Analyzer Improved Transmission Jammer Reaction Control System Hacking Suite System Shield Component Analysis Suite > --- WEAPON ----------- Heavy Machine Gun Advanced Datajack > --- INVENTORY -------- Micro Nuclear Core Advanced Treads Matter Filter Heavy Machine Gun Missile Launcher [Rating: 101] Favorites ----------- Power Light Ion Engine Engine Light Ion Engine Power Core Light Nuclear Core Reactor Micro Antimatter Reactor Propulsion Aluminum Leg Treads Advanced Treads Leg Aluminum Leg Wheel Compact Wheel Flight Unit Nuclear Pulse Array Utility Medium Storage Unit Device Improved Terrain Scanner Storage Medium Storage Unit Processor Advanced Targeting Computer Hackware Hacking Suite Protection Light Armor Plating Weapon Gauss Rifle Energy Gun Improved EM Shotgun Energy Cannon Heavy Particle Cannon Ballistic Gun Gauss Rifle Ballistic Cannon Heavy Gauss Cannon Launcher Mini Grenade Launcher Slashing Weapon Axe Special Melee Weapon Advanced Datajack Build | -11 -10 -9 -8 -7 -6 -6 -6 -6 -5 -4 -3 -2 ------- Run | Yrd Mat Mat Mat Fac Fac Was Fac DSF Fac Fac Res Res Slots Evolved 16 | . . 2 2 2 2 . . . 2 2 2 2 Power 1 | . . . . . . . . . . 1 . . Propulsion 6 | . . 1 . . 2 . . . 1 . 2 . Utility 8 | . . 1 2 2 . . . . 1 1 . 1 Weapon 1 | . . . . . . . . . . . . 1 Parts Attached 115 | 7 4 18 31 19 . . 3 6 9 15 3 . Power 15 | 1 . 2 4 3 . . 1 . 1 2 1 . Engine 5 | 1 . 2 2 . . . . . . . . . Core 9 | . . . 2 3 . . 1 . 1 2 . . Reactor 1 | . . . . . . . . . . . 1 . Propulsion 37 | 2 2 5 13 3 . . . 3 5 4 . . Treads 4 | . . . . . . . . 3 . 1 . . Leg 23 | . 2 5 13 2 . . . . 1 . . . Wheel 2 | 2 . . . . . . . . . . . . Hover . | . . . . . . . . . . . . . Flight 8 | . . . . 1 . . . . 4 3 . . Utility 37 | 1 2 3 8 11 . . 1 1 3 5 2 . Device 15 | . 1 . 4 3 . . 1 . 2 4 . . Storage 4 | 1 1 . . 2 . . . . . . . . Processor 9 | . . . 2 3 . . . . 1 1 2 . Hackware 2 | . . . . 1 . . . 1 . . . . Protection 7 | . . 3 2 2 . . . . . . . . Artifact . | . . . . . . . . . . . . . Weapon 26 | 3 . 8 6 2 . . 1 2 . 4 . . Energy Gun 5 | 2 . 2 1 . . . . . . . . . Energy Cannon 5 | . . 4 1 . . . . . . . . . Ballistic Gun 10 | 1 . 1 3 1 . . 1 2 . 1 . . Ballistic Cannon 1 | . . . . . . . . . . 1 . . Launcher 1 | . . . 1 . . . . . . . . . Special Weapon . | . . . . . . . . . . . . . Impact Weapon . | . . . . . . . . . . . . . Slashing Weapon 3 | . . 1 . 1 . . . . . 1 . . Piercing Weapon . | . . . . . . . . . . . . . Special Melee Weapon 1 | . . . . . . . . . . 1 . . Unidentified Prototypes 4 | . . 1 . 1 . . . . . 1 1 . Parts Lost 39 | . . 5 12 3 . 3 . . 1 5 6 4 Power 7 | . . 1 2 2 . . . . . 1 1 . Propulsion 12 | . . . 4 . . 1 . . 1 2 4 . Utility 11 | . . 1 3 1 . 1 . . . 1 . 4 Weapon 9 | . . 3 3 . . 1 . . . 1 1 . Highest Loss Streak 10 | . . 2 10 2 . 3 . . 1 2 4 4 To Critical Strikes . | . . . . . . . . . . . . . Average Slot Usage (%) 89 | . 89 97 94 96 86 79 57 83 90 81 66 33 Engine 4 | . 14 10 6 3 . . . . . . . . Core 3 | . . . 2 3 6 5 6 6 5 7 6 . Treads 1 | . . . . . . . . 10 10 . 2 . Leg 19 | . 18 33 26 22 20 18 13 13 8 . . . Flight 3 | . . . . . . . . . 10 19 11 . Device 11 | . 4 4 14 14 6 6 8 13 13 18 12 5 Storage 6 | . 14 11 9 6 6 5 . . . . . . Processor 11 | . . . 11 16 20 20 20 20 19 15 17 21 Hackware 4 | . . . . 5 6 6 6 7 11 10 9 5 Protection 5 | . . 15 6 6 6 5 . . . . . . Energy Gun 3 | . 14 6 5 . . . . . . . . . Energy Cannon 3 | . . 8 6 2 . . . . . . . . Ballistic Gun 5 | . 14 4 5 6 6 5 2 11 6 3 . . Slashing Weapon 2 | . . 2 . 4 6 5 . . . 2 4 . Naked Turns . | . . . . . . . . . . . . . Heaviest Build 36 | 12 18 31 32 36 26 26 12 18 22 34 26 2 Greatest Support 45 | 26 26 30 45 36 36 36 24 24 34 40 33 3 Greatest Overweight (x) 2 | . . 1 2 1 . . . . . . 2 . Average Overweight (x) . | . . . . . . . . . . . . . Largest Inventory Capacity 10 | 8 10 10 10 10 10 10 5 5 5 5 5 5 Average Capacity 8 | 7 8 10 10 9 10 9 5 5 5 5 5 5 Most Carried 10 | 6 9 10 10 10 10 10 5 5 5 5 5 5 Average Carried 7 | 2 7 8 9 8 10 9 4 5 4 4 4 5 Final Capacity 10 | 8 10 10 10 10 10 5 5 5 5 5 5 5 Final Carried 10 | 6 9 10 10 10 10 5 5 5 5 5 5 5 Class Distribution -------------------- 41% | Scavenger-Mutant 29% | Mutant 16% | Hacker-Mutant 7% | Hacker-Sprinter Dominant Class ---------------- Mutant | -10/Materials Mutant | -9/Materials Scavenger-Mutant | -8/Materials Scavenger-Mutant | -7/Factory Scavenger-Mutant | -6/Factory Scavenger-Mutant | -6/Waste Scavenger-Mutant | -6/Factory Scavenger-Mutant | -6/DSF Hacker-Mutant | -5/Factory Hacker-Sprinter | -4/Factory Hacker-Ninja | -3/Research Scout | -2/Research Resources | -11 -10 -9 -8 -7 -6 -6 -6 -6 -5 -4 -3 -2 ----------- Run | Yrd Mat Mat Mat Fac Fac Was Fac DSF Fac Fac Res Res Matter Collected 1613 | 183 143 233 408 106 . . . . 340 186 . 14 Remotely . | . . . . . . . . . . . . . Salvage Created 2486 | . 235 626 1241 106 . . . . 94 184 . . Parts 154 | . 8 39 77 10 . . . . 8 12 . . Haulers Intercepted 1 | . . 1 . . . . . . . . . . Recyclers Shooed 1 | . . . 1 . . . . . . . . . Parts Field Recycled . | . . . . . . . . . . . . . Retrieved Matter . | . . . . . . . . . . . . . Parts Self-Destructed . | . . . . . . . . . . . . . Prevented . | . . . . . . . . . . . . . Kills | -11 -10 -9 -8 -7 -6 -6 -6 -6 -5 -4 -3 -2 ------- Run | Yrd Mat Mat Mat Fac Fac Was Fac DSF Fac Fac Res Res Combat Hostiles Destroyed 54 | . 5 14 23 4 . . . . 4 4 . . Melee 3 | . . . . 2 . . . . . 1 . . Guns 29 | . 5 5 12 2 . . . . 4 1 . . Cannons 15 | . . 8 7 . . . . . . . . . AOE 6 | . . . 4 . . . . . . 2 . . Classes Destroyed 13 | . 1 4 6 1 . . . . . 1 . . Worker 4 | . . . 4 . . . . . . . . . Builder 1 | . . . 1 . . . . . . . . . Tunneler 1 | . . . 1 . . . . . . . . . Hauler 1 | . . 1 . . . . . . . . . . Recycler 1 | . . . 1 . . . . . . . . . Mechanic 1 | . . . 1 . . . . . . . . . Watcher 2 | . . 1 1 . . . . . . . . . Swarmer 15 | . . 4 3 3 . . . . 4 1 . . Cutter 2 | . . . . . . . . . . 2 . . Grunt 25 | . 5 6 14 . . . . . . . . . Sentry 10 | . . 4 5 . . . . . . 1 . . Hunter 1 | . . . 1 . . . . . . . . . Programmer 1 | . . . . 1 . . . . . . . . Best Kill Streak 15 | . 3 4 15 3 . . . . 4 3 . . Combat Bots Only 8 | . 3 4 8 3 . . . . 4 3 . . Max Kills in Single Turn 7 | . 1 1 7 1 . . . . 1 2 . . Gunslinging . | . . . . . . . . . . . . . Exploded 2 | . . . 2 . . . . . . 2 . . Melee 1 | . . . . 1 . . . . . 1 . . Uniques/NPCs Destroyed . | . . . . . . . . . . . . . Combat | -11 -10 -9 -8 -7 -6 -6 -6 -6 -5 -4 -3 -2 -------- Run | Yrd Mat Mat Mat Fac Fac Was Fac DSF Fac Fac Res Res Hostile Shots Fired 582 | . 15 80 140 79 . 2 . 38 27 94 29 78 Missed 227 | . 3 24 38 30 . . . 16 12 65 9 30 Damage Taken 6513 | . 169 636 1702 573 . 96 . 263 294 660 573 1547 Core 2427 | . 13 59 280 102 . 40 . 87 110 121 161 1454 Absorbed by Shields 50 | . . . . . . . . . . . 50 . Ignored by Resistances 58 | . . . . . . . . 58 . . . . Core Remaining (%) 84 | 100 94 85 49 85 . . . 85 89 89 87 . Volleys Fired 142 | . 12 46 56 5 . . . . 8 15 . . Largest 2 | . 2 2 2 1 . . . . 1 1 . . Hottest 136 | . 70 136 120 28 . . . . 30 30 . . Shots Fired 222 | . 24 68 102 5 . . . . 8 15 . . Gun 160 | . 24 36 72 5 . . . . 8 15 . . Cannon 61 | . . 32 29 . . . . . . . . . Launcher 1 | . . . 1 . . . . . . . . . Special . | . . . . . . . . . . . . . Kinetic 86 | . 12 7 39 5 . . . . 8 15 . . Thermal 74 | . 12 33 29 . . . . . . . . . Explosive 1 | . . . 1 . . . . . . . . . Electromagnetic 61 | . . 28 33 . . . . . . . . . Robot Hit Streak 30 | . 11 30 16 4 . . . . 4 2 . . Robot Miss Streak 4 | . 2 4 2 1 . . . . 1 3 . . Penetration Max . | . . . . . . . . . . . . . Secondary Targets 3 | . 1 . 2 . . . . . . . . . Max Gunslinging Chain 1 | . 1 . 1 . . . . . . . . . Shots Hit Robots 168 | . 19 47 74 10 . . . . 5 13 . . Core Hits 126 | . 12 21 59 5 . . . . 5 23 . 1 Critical Kills . | . . . . . . . . . . . . . Critical Parts Destroyed . | . . . . . . . . . . . . . Critical Strikes 5 | . 2 . . 1 . . . . . 2 . . Burn 2 | . 2 . . . . . . . . . . . Sever 3 | . . . . 1 . . . . . 2 . . Melee Attacks 20 | . . 1 . 9 . . . . . 10 . . Impact . | . . . . . . . . . . . . . Slashing 18 | . . 1 . 9 . . . . . 8 . . Piercing . | . . . . . . . . . . . . . Sneak Attacks . | . . . . . . . . . . . . . Combat Hostiles . | . . . . . . . . . . . . . Follow-up Attacks . | . . . . . . . . . . . . . Damage Inflicted 4402 | . 241 729 2474 306 . . . . 112 519 1 20 Guns 1942 | . 241 356 992 85 . . . . 112 156 . . Cannons 800 | . . 350 450 . . . . . . . . . Explosions 1205 | . . . 1020 . . . . . . 185 . . Melee 422 | . . 23 . 221 . . . . . 178 . . Ramming 33 | . . . 12 . . . . . . . 1 20 Kinetic 971 | . 115 47 456 85 . . . . 112 156 . . Thermal 1256 | . 126 363 767 . . . . . . . . . Explosive 703 | . . . 703 . . . . . . . . . Electromagnetic 1017 | . . 296 536 . . . . . . 185 . . Impact . | . . . . . . . . . . . . . Slashing 422 | . . 23 . 221 . . . . . 178 . . Piercing . | . . . . . . . . . . . . . Highest Corruption 13 | . . . 1 2 . 10 10 13 . . . 5 Average Corruption 1 | . . . 1 1 . 10 10 10 . . . 5 Corruption Purged . | . . . . . . . . . . . . . Corruption Blocked . | . . . . . . . . . . . . . Effects 14 | . . . 4 4 . 3 1 2 . . . . Message Errors 4 | . . . 1 2 . . 1 . . . . . Matter Fused 5 | . . . . 2 . 2 . 1 . . . . Heat Flow Errors 1 | . . . 1 . . . . . . . . . Energy Discharges 2 | . . . 1 . . . . 1 . . . . Data Loss (minor) 2 | . . . 1 . . 1 . . . . . . Overload Shots . | . . . . . . . . . . . . . Overflow Damage 56 | . . 18 30 8 . . . . . . . . Projectiles 18 | . . 18 . . . . . . . . . . Explosions 30 | . . . 30 . . . . . . . . . Melee 8 | . . . . 8 . . . . . . . . Knockbacks . | . . . . . . . . . . . . . Impact . | . . . . . . . . . . . . . Kinetic . | . . . . . . . . . . . . . Secondary . | . . . . . . . . . . . . . Self-Inflicted Damage 162 | . . . 127 . . . . . . 26 . 9 Shots 4 | . . . 3 . . . . . . 1 . . Rammed 6 | . . . . . . . . . . . 1 5 Targets Rammed 8 | . . . 2 . . . . . . . 1 5 Kicked 2 | . . . 2 . . . . . . . . . Crushed . | . . . . . . . . . . . . . Highest Temperature 526 | . 110 526 195 . . . . . 13 15 . . Average Temperature 91 | . 50 138 61 . . . . . 5 7 . . Received Heat Transfer 1194 | . 117 165 747 48 . . . . 63 36 18 . Effects 10 | . . 10 . . . . . . . . . . Shutdowns 1 | . . 1 . . . . . . . . . . Energy Bleed 2 | . . 2 . . . . . . . . . . Matter Decay 1 | . . 1 . . . . . . . . . . Damage (minor) 2 | . . 2 . . . . . . . . . . Damage (major) 4 | . . 4 . . . . . . . . . . Siege Activations . | . . . . . . . . . . . . . Robots Corrupted 1 | . . 1 . . . . . . . . . . Combat Hostiles 1 | . . 1 . . . . . . . . . . Parts Fried 5 | . . 2 3 . . . . . . . . . Impact Corruptions . | . . . . . . . . . . . . . Robots Melted . | . . . . . . . . . . . . . Combat Hostiles . | . . . . . . . . . . . . . Parts Melted 2 | . . 2 . . . . . . . . . . Heat Transferred 2200 | . 518 666 1016 . . . . . . . . . Parts Sabotaged . | . . . . . . . . . . . . . Parts Stolen . | . . . . . . . . . . . . . Parts Stripped . | . . . . . . . . . . . . . Power Chain Reactions 3 | . . . 3 . . . . . . . . . Alert | -11 -10 -9 -8 -7 -6 -6 -6 -6 -5 -4 -3 -2 ------- Run | Yrd Mat Mat Mat Fac Fac Was Fac DSF Fac Fac Res Res Peak Influence 628 | . 145 278 628 242 24 53 16 11 200 609 462 243 Initial 327 | . . . 83 217 24 8 16 11 5 93 327 243 Average 205 | . 36 130 383 174 24 22 16 11 89 328 381 232 Maximum Alert Level 2 | . . 1 2 1 . . . . 1 2 2 1 Low Security (%) 54 | 100 100 85 8 49 100 100 100 100 90 36 . . Level 1 31 | . . 14 48 50 . . . . 9 18 62 100 Level 2 14 | . . . 42 . . . . . . 44 37 . Level 3 . | . . . . . . . . . . . . . Level 4 . | . . . . . . . . . . . . . Level 5 . | . . . . . . . . . . . . . High Security . | . . . . . . . . . . . . . Max Security . | . . . . . . . . . . . . . Squads Dispatched 15 | . 1 1 4 3 . . . 1 2 2 1 . Investigation 3 | . . 1 . 1 . . . . 1 . . . Extermination 1 | . . . . 1 . . . . . . . . Reinforcement 8 | . 1 . 1 1 . . . 1 1 2 1 . Assault . | . . . . . . . . . . . . . Garrison 3 | . . . 3 . . . . . . . . . Intercept . | . . . . . . . . . . . . . Searches Triggered 1 | . . . . . . . . . . 1 . . Construction Impeded 1 | . . . 1 . . . . . . . . . Haulers Reinforced . | . . . . . . . . . . . . . Active Scanning Responses . | . . . . . . . . . . . . . Cargo Convoy Interrupts . | . . . . . . . . . . . . . Stealth | -11 -10 -9 -8 -7 -6 -6 -6 -6 -5 -4 -3 -2 --------- Run | Yrd Mat Mat Mat Fac Fac Was Fac DSF Fac Fac Res Res Distress Signals 4 | . . 1 2 . . . . . . 1 . . Communications Jammed 40 | . . . . . . . . . . 39 1 . Distress Signals 40 | . . . . . . . . . . 39 1 . Times Spotted 157 | . 6 19 37 8 . 6 . 4 11 35 9 22 Peak Tracking Total 22 | . 4 4 8 3 . 6 . 5 4 13 6 22 Tactical Retreats 18 | . . 3 2 1 . . . . 2 8 2 . Traps | -11 -10 -9 -8 -7 -6 -6 -6 -6 -5 -4 -3 -2 ------- Run | Yrd Mat Mat Mat Fac Fac Was Fac DSF Fac Fac Res Res Traps Triggered 7 | . . 1 1 1 1 . . 1 1 . 1 . Indirectly . | . . . . . . . . . . . . . Trap Hack Attempts . | . . . . . . . . . . . . . Triggered . | . . . . . . . . . . . . . Disarmed . | . . . . . . . . . . . . . Reprogrammed . | . . . . . . . . . . . . . Reused . | . . . . . . . . . . . . . Traps Extracted . | . . . . . . . . . . . . . Installed . | . . . . . . . . . . . . . Triggered . | . . . . . . . . . . . . . Machines | -11 -10 -9 -8 -7 -6 -6 -6 -6 -5 -4 -3 -2 ---------- Run | Yrd Mat Mat Mat Fac Fac Was Fac DSF Fac Fac Res Res Machines Disabled 6 | . . . 4 . . . . . 1 1 . . Max in Single Turn 1 | . . . 1 . . . . . 1 1 . . Machines Repaired . | . . . . . . . . . . . . . Machines Dismantled . | . . . . . . . . . . . . . Machines Sabotaged . | . . . . . . . . . . . . . Overloaded Fab Kills . | . . . . . . . . . . . . . Hacking | -11 -10 -9 -8 -7 -6 -6 -6 -6 -5 -4 -3 -2 --------- Run | Yrd Mat Mat Mat Fac Fac Was Fac DSF Fac Fac Res Res Machines Accessed 15 | . 2 2 1 4 . . 1 . 2 3 . . Terminals 15 | . 2 2 1 4 . . 1 . 2 3 . . Fabricators . | . . . . . . . . . . . . . Repair Stations . | . . . . . . . . . . . . . Recycling Units . | . . . . . . . . . . . . . Scanalyzers . | . . . . . . . . . . . . . Garrison Access . | . . . . . . . . . . . . . Total Hacks 41 | . 8 7 1 11 . . 2 . 6 6 . . Successful 16 | . 3 3 1 5 . . 1 . 2 1 . . Failed 25 | . 5 4 . 6 . . 1 . 4 5 . . Catastrophic 8 | . 2 1 . 1 . . . . 1 3 . . Database Lockouts . | . . . . . . . . . . . . . Manual 29 | . 8 6 1 5 . . . . 3 6 . . Terminals 41 | . 8 7 1 11 . . 2 . 6 6 . . Fabricators . | . . . . . . . . . . . . . Repair Stations . | . . . . . . . . . . . . . Recycling Units . | . . . . . . . . . . . . . Scanalyzers . | . . . . . . . . . . . . . Garrison Access . | . . . . . . . . . . . . . Terminal Hacks 11 | . 2 1 1 4 . . 1 . 1 1 . . Record 2 | . . . . 1 . . . . 1 . . . Open DSF 1 | . . . . . . . 1 . . . . . Branch Access Points 1 | . . . . 1 . . . . . . . . Unreport Threat 2 | . 1 . 1 . . . . . . . . . Locate Traps 2 | . . . . 1 . . . . . 1 . . Zone Layout 3 | . 1 1 . 1 . . . . . . . . Fabricator Hacks . | . . . . . . . . . . . . . Repair Station Hacks . | . . . . . . . . . . . . . Recycling Unit Hacks . | . . . . . . . . . . . . . Scanalyzer . | . . . . . . . . . . . . . Garrison Access Hacks . | . . . . . . . . . . . . . Unauthorized Hacks 5 | . 1 2 . 1 . . . . 1 . . . Terminals 5 | . 1 2 . 1 . . . . 1 . . . Track 5 | . 1 2 . 1 . . . . 1 . . . Fabricators . | . . . . . . . . . . . . . Repair Stations . | . . . . . . . . . . . . . Recycling Units . | . . . . . . . . . . . . . Scanalyzers . | . . . . . . . . . . . . . Garrison Access . | . . . . . . . . . . . . . Data Cores Recovered . | . . . . . . . . . . . . . Used . | . . . . . . . . . . . . . Hacking Detections 13 | . 2 2 . 4 . . . . 2 3 . . Full Trace Events 2 | . . . . 1 . . . . 1 . . . Feedback Events . | . . . . . . . . . . . . . Feedback Blocked . | . . . . . . . . . . . . . Robot Schematics Acquired . | . . . . . . . . . . . . . Robots Built . | . . . . . . . . . . . . . Authchips . | . . . . . . . . . . . . . Time . | . . . . . . . . . . . . . Total Robot Build Rating . | . . . . . . . . . . . . . Part Schematics Acquired . | . . . . . . . . . . . . . Parts Built . | . . . . . . . . . . . . . Authchips . | . . . . . . . . . . . . . Time . | . . . . . . . . . . . . . Total Part Build Rating . | . . . . . . . . . . . . . Parts Repaired . | . . . . . . . . . . . . . Time . | . . . . . . . . . . . . . Parts Recycled . | . . . . . . . . . . . . . Recycled Matter . | . . . . . . . . . . . . . Retrieved Matter . | . . . . . . . . . . . . . Retrieved Components . | . . . . . . . . . . . . . Parts Scanalyzed . | . . . . . . . . . . . . . Part Schematics Acquired . | . . . . . . . . . . . . . Parts Damaged . | . . . . . . . . . . . . . Bothacking | -11 -10 -9 -8 -7 -6 -6 -6 -6 -5 -4 -3 -2 ------------ Run | Yrd Mat Mat Mat Fac Fac Was Fac DSF Fac Fac Res Res Used RIF Installer . | . . . . . . . . . . . . . Robots Hacked 1 | . . . . . . . . . . 1 . . Non-combat 1 | . . . . . . . . . . 1 . . Combat . | . . . . . . . . . . . . . Robot Hacks Applied 1 | . . . . . . . . . . 1 . . parse_system 1 | . . . . . . . . . . 1 . . Relay Couplers Released . | . . . . . . . . . . . . . Fabnet Peak Effective % . | . . . . . . . . . . . . . Robots Rewired . | . . . . . . . . . . . . . Allies Hacked . | . . . . . . . . . . . . . Hacks Repelled . | . . . . . . . . . . . . . Allies | -11 -10 -9 -8 -7 -6 -6 -6 -6 -5 -4 -3 -2 -------- Run | Yrd Mat Mat Mat Fac Fac Was Fac DSF Fac Fac Res Res Total Allies . | . . . . . . . . . . . . . Largest Group . | . . . . . . . . . . . . . Highest-Rated Group . | . . . . . . . . . . . . . Highest-Rated Ally . | . . . . . . . . . . . . . Total Orders . | . . . . . . . . . . . . . Ally Attacks . | . . . . . . . . . . . . . Total Damage . | . . . . . . . . . . . . . Kills . | . . . . . . . . . . . . . Allies Corrupted . | . . . . . . . . . . . . . Allies Melted . | . . . . . . . . . . . . . Intel | -11 -10 -9 -8 -7 -6 -6 -6 -6 -5 -4 -3 -2 ------- Run | Yrd Mat Mat Mat Fac Fac Was Fac DSF Fac Fac Res Res Robot Analysis Total . | . . . . . . . . . . . . . Derelict Logs Recovered . | . . . . . . . . . . . . . Drone Launches . | . . . . . . . . . . . . . Drone Recoveries . | . . . . . . . . . . . . . Exploration | -11 -10 -9 -8 -7 -6 -6 -6 -6 -5 -4 -3 -2 ------------- Run | Yrd Mat Mat Mat Fac Fac Was Fac DSF Fac Fac Res Res Turns Passed 3505 | 45 241 615 670 806 42 68 25 38 359 341 178 77 Spaces Moved 3445 | 34 149 312 316 734 47 76 23 30 448 779 354 143 Core 148 | 4 . . . . . . . . . . 1 143 Treads . | . . . . . . . . . . . . . Legs 1755 | . 109 312 316 734 47 76 23 30 108 . . . Wheels 70 | 30 40 . . . . . . . . . . . Hover . | . . . . . . . . . . . . . Flight 1472 | . . . . . . . . . 340 779 353 . Fastest Speed 28 | 50 90 120 90 90 90 90 90 90 28 28 37 50 Average Speed 75 | 85 111 121 121 96 90 90 90 90 69 31 46 50 Slowest Speed 260 | 90 120 190 260 180 90 90 90 90 110 54 150 50 Overloaded Moves . | . . . . . . . . . . . . . Propulsion Burnouts . | . . . . . . . . . . . . . Robots Hopped 17 | . . . . . . . . . 8 4 5 . Cave-ins Triggered . | . . . . . . . . . . . . . Exploration Rate (%) 22 | 3 27 24 39 26 3 68 1 40 10 27 19 9 Regions Visited 12 Branch Regions . Pre-discovered Areas . | . . . . . . . . . . . . . Known Exits Taken 4 | . . . . . . . 1 . 1 1 1 . Unknown Exits Taken 5 | 1 1 1 1 1 . . . . . . . . Scrap Searched . | . . . . . . . . . . . . . Spaces Dug 1 | . . . 1 . . . . . . . . . Terrain Destroyed 34 | . . 1 33 . . . . . . . . . Melee . | . . . . . . . . . . . . . Projectile 9 | . . 1 8 . . . . . . . . . AOE 25 | . . . 25 . . . . . . . . . Terrain Rammed . | . . . . . . . . . . . . . Walls Destroyed . | . . . . . . . . . . . . . Machines Disabled . | . . . . . . . . . . . . . Actions | -11 -10 -9 -8 -7 -6 -6 -6 -6 -5 -4 -3 -2 --------- Run | Yrd Mat Mat Mat Fac Fac Was Fac DSF Fac Fac Res Res Total 4082 | 46 200 487 513 816 47 75 26 38 483 841 361 149 Wait 216 | . 27 74 72 17 . . . . 8 18 . . Move 3401 | 33 148 311 315 733 47 75 22 29 432 769 344 143 Hop 16 | . . . . . . . . . 7 4 5 . Pick Up 65 | 5 5 16 15 14 . . 1 1 5 2 1 . Fast Attach 62 | 7 2 5 12 10 . . 2 6 6 9 3 . Attach 25 | . . 5 8 6 . . 1 . 1 4 . . Detach 7 | 1 . 1 1 2 . . . . 1 1 . . Swap 29 | . 2 8 11 4 . . . . 2 2 . . Drop 86 | . 4 20 21 16 . . . 2 13 6 3 1 Fire 142 | . 12 46 56 5 . . . . 8 15 . . Melee 20 | . . 1 . 9 . . . . . 10 . . Ram 5 | . . . . . . . . . . . . 5 Kick 2 | . . . 2 . . . . . . . . . Crush . | . . . . . . . . . . . . . Escape Stasis 6 | . . . . . . . . . . 1 5 . Rewire . | . . . . . . . . . . . . . Trap . | . . . . . . . . . . . . . Miscellaneous . | . . . . . . . . . . . . . Route ------- -11/Scrapyard -10/Materials -9/Materials -8/Materials -7/Factory (discovered 5 exits: [*Fac] / Sto x2 / Low x2) -6/Factory -6/Waste -6/Factory -6/DSF -5/Factory (discovered 2 exits: *Fac / *Upp) -4/Factory -3/Research -2/Research History --------- Turn | Location | Event 21 | -11/Scrapyard | Discovered new exit (range 15) 46 | -11/Scrapyard | Entered Materials 225 | -10/Materials | Discovered new exit (range 4) 287 | -10/Materials | Entered another Materials area 287 | -9/Materials | Evolved 2 slots: Propulsion x1, Utility x1 308 | -9/Materials | Build established: Mutant 717 | -9/Materials | Discovered new exit (range 15) 902 | -9/Materials | Entered another Materials area 902 | -8/Materials | Evolved 2 slots: Utility x2 1140 | -8/Materials | Lost 10 parts (1p4n3u2w) 1331 | -8/Materials | Garrison activated, responded to threat 1386 | -8/Materials | Core integrity fell below 50% 1408 | -8/Materials | Destroyed 8 combat bots 1443 | -8/Materials | Build established: Scavenger-Mutant 1499 | -8/Materials | Discovered new exit (range 15) 1572 | -8/Materials | Entered Factory 1572 | -7/Factory | Evolved 2 slots: Utility x2 2109 | -7/Factory | Identified exit to Storage 2109 | -7/Factory | Identified exit to Lower Caves 2363 | -7/Factory | Discovered new exit (range 9) 2378 | -7/Factory | Entered another Factory area 2378 | -6/Factory | Evolved 2 slots: Propulsion x2 2395 | -6/Factory | Spotted B-75 Beast 2420 | -6/Factory | Sucked down chute 2420 | -6/Factory | Entered Waste 2435 | -6/Waste | EMP discharged 2435 | -6/Waste | System corruption reached 10% 2440 | -6/Waste | Spotted C-40 Crusher 2460 | -6/Waste | Spotted C-40 Crusher 2464 | -6/Waste | Spotted C-40 Crusher 2465 | -6/Waste | Spotted C-40 Crusher 2468 | -6/Waste | Spotted C-40 Crusher 2473 | -6/Waste | Spotted C-40 Crusher 2474 | -6/Waste | Discovered new exit (range 16) 2475 | -6/Waste | Crushed by Compactor (1 part destroyed, 1 dropped) 2479 | -6/Waste | Crushed by Compactor (1 part destroyed, 2 dropped) 2488 | -6/Waste | Entered Factory 2510 | -6/Factory | Lost 3 parts (1n1u1w) 2513 | -6/Factory | Identified exit to DSF 2513 | -6/Factory | Entered DSF 2538 | -6/DSF | Additional patrols routed to DSF 2538 | -6/DSF | Discovered new exit (range 12) 2551 | -6/DSF | Entered Factory 2551 | -5/Factory | Evolved 2 slots: Propulsion x1, Utility x1 2568 | -5/Factory | Discovered new exit (range 12) 2610 | -5/Factory | Identified exit to Upper Caves 2788 | -5/Factory | Build established: Hacker-Mutant 2891 | -5/Factory | Discovered new exit (range 11) 2910 | -5/Factory | Identified exit to Factory 2910 | -5/Factory | Entered another Factory area 2910 | -4/Factory | Evolved 2 slots: Power x1, Utility x1 3072 | -4/Factory | Found Prototype Processor 3072 | -4/Factory | Identified Exp. Signal Interpreter 3117 | -4/Factory | Spotted B-86 Titan 3160 | -4/Factory | Search patrols dispatched 3248 | -4/Factory | Discovered new exit (range 7) 3250 | -4/Factory | Identified exit to Research 3251 | -4/Factory | Entered Research 3251 | -3/Research | Evolved 2 slots: Propulsion x2 3351 | -3/Research | Found Prototype Processor 3351 | -3/Research | Identified Spectral Analyzer 3354 | -3/Research | Spotted B-86 Titan 3412 | -3/Research | Discovered new exit (range 7) 3424 | -3/Research | Identified exit to Research 3429 | -3/Research | Entered another Research area 3429 | -2/Research | Evolved 2 slots: Utility x1, Weapon x1 3458 | -2/Research | Lost 4 parts (1p2n1w) 3497 | -2/Research | Core integrity fell below 50% 3505 | -2/Research | Core integrity fell below 20% 3506 | -2/Research | Destroyed by S-43 Plague with Heavy Machine Gun Last Messages --------------- 03466_ Penetrated by Slug. 03466_ Slug penetrates Wall. 03469_ Acquired 14 matter. 03471_ Knocked back. 03485_ U-05 Engineer builds a Wall. 03493_ Slug penetrates Wall. 03493_ U-05 Engineer builds a Wall. 03494_ Slammed into U-05 Engineer. 03495_ Imp. Terrain Scanner destroyed. 03495_ System corrupted by crushing effect (+5). 03495_ Knocked back. 03495_ C-30 ARC bursts open, deploying its payload. 03495_ S-43 Plague unfolds itself. 03495_ K-01 Serf destroyed. 03496_ Slammed into U-05 Engineer. 03496_ Hacking Suite destroyed. 03496_ Critical hit (Blast). 03496_ Knocked back. 03498_ Slammed into S-43 Plague. 03501_ U-05 Engineer builds a Wall. Map ----- +----------------------------------------------------+ | ?????????????### ?"??#" # ? #??????????? | | ???????????????# """ #%" #??#######?#????????? | | ???????????????# G +" #???#?#???#?????????? | | ???????????????# """ # ##???#??????????????? | | ???????????????# " #% ###### #???? | | ????????????#??# ?#% +???? | | ???????????????# ? # ######### #???? | | ????????????#??######+#?#%#?????????????##???????? | | ????????????????????# #?#%#?#???????#????????????? | | ????????????????????# #?#%####???#?#?? ??????????? | | ???????????########## ###%######?????????????????? | | ? w + ???#????????????? | | ????????????######### #?????????????????? | | ???????????########## # ????? ? ????????? | | ???????????# # +?????????????????? | | ???????????# # #?????????????????? | | ???????????# #ss #????#????????????? | | ???????????# + +????? ???????????? | | ???????????# #s #+###???????????????? | | ???????????# ! # / ????????????????? | | ???????????# /s s##### ???????????????? | | ???????????# #s #???? = ?????????????? | | ???????????# # u #????? #????????????? | | ???????????########## ##???? #????????????? | | ?????????????####### H #????? #????????????? | | ?????# @#??????+###????????????? | | ?????# ?????????????????????? | | ?????# R ???????????????????? | | ?????# ##+##??????????????????? | | ?????#### ######+### #??????????????????????? | | ???????????????????#### ###??????????????????????? | | ??????????????????????# #????????????????????????? | | ??????????????????????# #????????????????????????? | | ??????????????????????# #????????????????????????? | | ??????????????????????# #????????????????????????? | | ??????????????????????# #????????????????????????? | | ??????????????????????# #????????????????????????? | | ??????????????????????# #????????????????????????? | | ??????????????????????# #????????????????????????? | | ??????????????????????# #????????????????????????? | | ?????????????????????? ?????????????????????????? | | ??????????????????????""?????????????????????????? | | ??????????????????????T ?????????????????????????? | | ??????????????????????? ?????????????????????????? | | ?????????????????????????????????????????????????? | | ?????????????????????????????????????????????????? | | ?????????????????????????????????????????????????? | | ?????????????????????????????????????????????????? | | ?????????????????????????????????????????????????? | | ?????????????????????????????????????????????????? | +----------------------------------------------------+ Best States ------------- Heat Dissipation 49 Coolant Potential 50 Energy Generation 29 Energy Capacity 365 Matter Stores 300 Matter Capacity 300 Sight Range 24 Terrain Scan Range 16 Terrain Scan Density 210 Jamming Range 14 Armor Coverage 450 Resistance: EM 25 Evasion (%) 74 Targeting Accuracy 16 Melee Accuracy 8 Core Analysis 6 Offensive Hacking 10 Defensive Hacking 10 Item Schematics ----------------- None Robot Schematics ------------------ None Fabricated ------------ Nothing Alien Tech Used ----------------- None Achievements -------------- Total Silence Challenges ------------ None Game ------ Seed NeutrinoCargoDesublimator Manual? 0 Play Time 01:16:38 Cumulative 35.8 hours Start 2024.03.06 @ 04:39:49 End 2024.03.06 @ 06:34:13 Sessions 1 Manual Loads 0 Difficulty Rogue Special Mode None Game No. 37 Rogue 37 Adventurer 0 Explorer 0 Win Type - Total 0 Types 0/0/0/0/0/0/0/0/0 Lore% 13 Gallery% 35 Achievement% 27 Wizard Run 0 Options --------- Layout 0 ASCII 0 Keyboard 0 Movement Numpad Keybinds 0 Fullscreen 1 Font 18/SmallcapsGlow Map View 76x50 Zoom Use 0% Tactical HUD 1 Map Filters NONE Filters NONE Steam 1 RUN: f5ae87d0-ea0c-474a-a0d7-622515d79147